fUSD/lending_fUSD_20250215
["ID","MTS","AMOUNT","RATE_DAILY","PERIOD"]
[353192975,1739640639537,-500.0,0.00011121,2]
[353192976,1739640639547,-661.5,0.00011121,2]
[353192977,1739640639557,-500.0,0.00011121,2]
[353192978,1739640639568,-522.73,0.00011121,2]
[353192979,1739640639577,-500.0,0.00011121,2]
[353192980,1739640639586,-500.0,0.00011121,2]
[353192981,1739640639595,-500.0,0.00011121,2]
[353192982,1739640639604,-233.54,0.00011121,2]
[353192983,1739640639613,-500.0,0.00011121,2]
[353192984,1739640639622,-500.0,0.00011121,2]
[353192985,1739640639632,-500.0,0.00011121,2]
[353192986,1739640639641,-500.0,0.00011121,2]
[353192987,1739640639650,-500.0,0.00011121,2]
[353192988,1739640639659,-500.0,0.00011121,2]
[353192989,1739640639668,-500.0,0.00011121,2]
[353192990,1739640639677,-500.0,0.00011121,2]
[353192991,1739640639686,-500.0,0.00011121,2]
[353192992,1739640639696,-500.0,0.00011121,2]
[353192993,1739640639705,-500.0,0.00011121,2]
[353192994,1739640639714,-500.0,0.00011121,2]
[353192995,1739640639724,-500.0,0.00011121,2]
[353192996,1739640639734,-500.0,0.00011121,2]
[353192997,1739640639743,-500.0,0.00011121,2]
[353192998,1739640639752,-500.0,0.00011121,2]
[353192999,1739640639761,-500.0,0.00011121,2]
[353193000,1739640639770,-500.0,0.00011121,2]
[353193001,1739640639780,-500.0,0.00011121,2]
[353193002,1739640639789,-500.0,0.00011121,2]
[353193003,1739640639798,-500.0,0.00011121,2]
[353193004,1739640639807,-1073.26,0.00011121,2]
[353193005,1739640639816,-702.58,0.00011121,2]
[353193006,1739640639825,-500.0,0.00011121,2]
[353193007,1739640639834,-749.99,0.00011121,2]
[353193008,1739640639843,-500.0,0.00011121,2]
[353193009,1739640639853,-500.0,0.00011121,2]
[353193010,1739640639862,-180.896505,0.00011121,2]
[353193011,1739640639871,-500.0,0.00011121,2]
[353193012,1739640639880,-500.0,0.00011121,2]
[353193013,1739640639890,-500.0,0.00011121,2]
[353193014,1739640639899,-500.0,0.00011121,2]
[353193015,1739640639909,-557.75,0.00011121,2]
[353193016,1739640639918,-826.89,0.00011121,2]
[353193017,1739640639928,-364.085208,0.00011121,2]
[353193018,1739640639936,-500.0,0.00011121,2]
[353193019,1739640639946,-551.39,0.00011121,2]
[353193020,1739640639955,-758.76,0.00011121,2]
[353193021,1739640639965,-574.22,0.00011121,2]
[353193022,1739640639974,-500.0,0.00011121,2]
[353193023,1739640639984,-500.0,0.00011121,2]
[353193024,1739640639993,-500.0,0.00011121,2]
[353193025,1739640640002,-664.12,0.00011121,2]
[353193026,1739640640011,-647.76,0.00011121,2]
[353193027,1739640640020,-500.0,0.00011121,2]
[353193028,1739640640029,-679.9,0.00011121,2]
[353193029,1739640640038,-500.0,0.00011121,2]
[353193030,1739640640048,-500.0,0.00011121,2]
[353193031,1739640640057,-500.0,0.00011121,2]
[353193032,1739640640066,-1774.1,0.00011121,2]
[353193033,1739640640075,-500.0,0.00011121,2]
[353193034,1739640640084,-500.0,0.00011121,2]
[353193036,1739640640093,-567.85,0.00011121,2]
[353193037,1739640640103,-500.0,0.00011121,2]
[353193038,1739640640112,-500.0,0.00011121,2]
[353193039,1739640640121,-536.13,0.00011121,2]
[353193040,1739640640131,-500.0,0.00011121,2]
[353193041,1739640640140,-810.11,0.00011121,2]
[353193043,1739640640153,-500.0,0.00011121,2]
[353193045,1739640640162,-500.0,0.00011121,2]
[353193047,1739640640171,-1032.21,0.00011121,2]
[353193049,1739640640181,-500.0,0.00011121,2]
[353193051,1739640640191,-1501.05,0.00011121,2]
[353193053,1739640640199,-500.0,0.00011121,2]
[353193055,1739640640209,-644.12,0.00011121,2]
[353193056,1739640640218,-500.0,0.00011121,2]
[353193057,1739640640228,-500.0,0.00011121,2]
[353193058,1739640640237,-500.0,0.00011121,2]
[353193059,1739640640246,-701.46,0.00011121,2]
[353193060,1739640640255,-917.15,0.00011121,2]
[353193061,1739640640264,-500.0,0.00011121,2]
[353193062,1739640640274,-500.0,0.00011121,2]
[353193063,1739640640283,-500.0,0.00011121,2]
[353193064,1739640640292,-500.0,0.00011121,2]
[353193065,1739640640302,-506.75,0.00011121,2]
[353193066,1739640640311,-845.55,0.00011121,2]
[353193067,1739640640321,-500.0,0.00011121,2]
[353193068,1739640640330,-500.0,0.00011121,2]
[353193069,1739640640339,-893.05,0.00011121,2]
[353193070,1739640640349,-500.0,0.00011121,2]
[353193071,1739640640359,-500.0,0.00011121,2]
[353193072,1739640640370,-500.0,0.00011121,2]
[353193073,1739640640379,-1077.49,0.00011121,2]
[353193074,1739640640388,-500.0,0.00011121,2]
[353193075,1739640640398,-625.32,0.00011121,2]
[353193076,1739640640408,-500.0,0.00011121,2]
[353193077,1739640640419,-500.0,0.00011121,2]
[353193078,1739640640430,-500.0,0.00011121,2]
[353193079,1739640640439,-500.0,0.00011121,2]
[353193080,1739640640448,-500.0,0.00011121,2]
[353193081,1739640640458,-500.0,0.00011121,2]
[353193082,1739640640467,-833.02,0.00011121,2]
[353193083,1739640640477,-629.24,0.00011121,2]
[353193084,1739640640486,-1985.97,0.00011121,2]
[353193085,1739640640495,-500.0,0.00011121,2]
[353193086,1739640640505,-500.0,0.00011122,2]
[353193087,1739640640515,-437.76622298,0.00011122,2]
[353193088,1739640640525,-396.16787776,0.00011122,2]
[353193089,1739640640535,-500.0,0.00011122,2]
[353193090,1739640640546,-500.0,0.00011122,2]
[353193091,1739640640555,-500.0,0.00011122,2]
[353193092,1739640640565,-500.0,0.00011122,2]
[353193093,1739640640574,-500.0,0.00011122,2]
[353193094,1739640640584,-500.0,0.00011122,2]
[353193095,1739640640593,-500.0,0.00011122,2]
[353193096,1739640640603,-500.0,0.00011122,2]
[353193097,1739640640613,-500.0,0.00011122,2]
[353193098,1739640640623,-500.0,0.00011122,2]
[353193099,1739640640636,-500.0,0.00011122,2]
[353193100,1739640640648,-527.1568418,0.00011122,2]
[353193101,1739640640657,-500.0,0.00011122,2]
[353193102,1739640640666,-500.0,0.00011122,2]
[353193103,1739640640676,-500.0,0.00011122,2]
[353193104,1739640640686,-500.0,0.00011122,2]
[353193105,1739640640697,-500.0,0.00011122,2]
[353193106,1739640640707,-500.0,0.00011122,2]
[353193107,1739640640717,-500.0,0.00011122,2]
[353193108,1739640640728,-738.52,0.00011122,2]
[353193109,1739640640738,-500.0,0.00011122,2]
[353193110,1739640640748,-500.0,0.00011122,2]
[353193111,1739640640758,-500.0,0.00011122,2]
[353193112,1739640640769,-500.0,0.00011122,2]
[353193113,1739640640779,-500.0,0.00011122,2]
[353193114,1739640640790,-500.0,0.00011123,2]
[353193115,1739640640801,-500.0,0.00011123,2]
[353193116,1739640640811,-500.0,0.00011123,2]
[353193117,1739640640821,-500.0,0.00011123,2]
[353193118,1739640640831,-500.0,0.00011123,2]
[353193119,1739640640842,-500.0,0.00011123,2]
[353193120,1739640640852,-500.0,0.00011123,2]
[353193121,1739640640862,-500.0,0.00011123,2]
[353193122,1739640640871,-500.0,0.00011123,2]
[353193123,1739640640881,-571.48,0.00011135,2]
[353193124,1739640640891,-512.53,0.00011135,2]
[353193125,1739640640901,-500.0,0.00011135,2]
[353193126,1739640640910,-500.0,0.00011135,2]
[353193127,1739640640920,-844.08,0.00011135,2]
[353193128,1739640640928,-678.77,0.00011135,2]
[353193129,1739640640938,-578.69,0.00011135,2]
[353193130,1739640640948,-836.8,0.00011135,2]
[353193132,1739640640957,-502.58,0.00011135,2]
[353193134,1739640640967,-500.0,0.00011135,2]
[353193136,1739640640980,-500.0,0.00011135,2]
[353193138,1739640640990,-830.02,0.00011135,2]
[353193139,1739640640999,-932.26,0.00011135,2]
[353193140,1739640641009,-651.91,0.00011135,2]
[353193141,1739640641018,-521.69,0.00011135,2]
[353193142,1739640641027,-500.0,0.00011135,2]
[353193143,1739640641036,-2314.63,0.00011135,2]
[353193144,1739640641045,-500.0,0.00011135,2]
[353193145,1739640641054,-500.0,0.00011135,2]
[353193146,1739640641064,-500.0,0.00011135,2]
[353193147,1739640641074,-500.0,0.00011135,2]
[353193148,1739640641083,-500.0,0.00011135,2]
[353193149,1739640641092,-1694.07,0.00011135,2]
[353193150,1739640641102,-500.0,0.00011135,2]
[353193151,1739640641111,-805.43,0.00011135,2]
[353193152,1739640641120,-553.77,0.00011135,2]
[353193153,1739640641130,-2635.773,0.00011144,2]
[353193154,1739640641143,-172.1,0.00011144,2]
[353193155,1739640641152,-250.0,0.00011147,2]
[353193156,1739640641162,-430.0,0.00011154,2]
[353193157,1739640641171,-1009.12802596,0.00011187,2]
[353193158,1739640641182,-10133.62755885,0.00011195,2]
[353193159,1739640641191,-352.52,0.000112,2]
[353193160,1739640641199,-500.0,0.00011203,2]
[353193161,1739640641209,-661.5,0.00011203,2]
[353193162,1739640641218,-500.0,0.00011203,2]
[353193163,1739640641230,-522.73,0.00011203,2]
[353193164,1739640641239,-500.0,0.00011203,2]
[353193165,1739640641249,-500.0,0.00011203,2]
[353193166,1739640641258,-500.0,0.00011203,2]
[353193167,1739640641267,-500.0,0.00011203,2]
[353193168,1739640641277,-500.0,0.00011203,2]
[353193169,1739640641286,-500.0,0.00011203,2]
[353193170,1739640641295,-500.0,0.00011203,2]
[353193171,1739640641304,-500.0,0.00011203,2]
[353193172,1739640641314,-211.17,0.00011203,2]
[353193173,1739640641324,-500.0,0.00011203,2]
[353193174,1739640641333,-500.0,0.00011203,2]
[353193175,1739640641342,-500.0,0.00011203,2]
[353193176,1739640641351,-500.0,0.00011203,2]
[353193177,1739640641361,-500.0,0.00011203,2]
[353193178,1739640641370,-500.0,0.00011203,2]
[353193179,1739640641380,-500.0,0.00011203,2]
[353193180,1739640641389,-500.0,0.00011203,2]
[353193181,1739640641400,-500.0,0.00011203,2]
[353193182,1739640641409,-500.0,0.00011203,2]
[353193183,1739640641419,-500.0,0.00011203,2]
[353193184,1739640641428,-500.0,0.00011203,2]
[353193185,1739640641437,-500.0,0.00011203,2]
[353193186,1739640641446,-384.74,0.00011203,2]
[353193187,1739640641455,-702.58,0.00011203,2]
[353193188,1739640641465,-1073.26,0.00011203,2]
[353193189,1739640641476,-500.0,0.00011203,2]
[353193190,1739640641485,-749.99,0.00011203,2]
[353193191,1739640641494,-500.0,0.00011203,2]
[353193192,1739640641504,-500.0,0.00011203,2]
[353193193,1739640641512,-180.896505,0.00011203,2]
[353193194,1739640641522,-500.0,0.00011203,2]
[353193195,1739640641531,-500.0,0.00011203,2]
[353193196,1739640641540,-500.0,0.00011203,2]
[353193197,1739640641549,-500.0,0.00011203,2]
[353193198,1739640641558,-557.75,0.00011203,2]
[353193199,1739640641568,-826.89,0.00011203,2]
[353193200,1739640641577,-364.085208,0.00011203,2]
[353193201,1739640641586,-500.0,0.00011203,2]
[353193202,1739640641595,-551.39,0.00011203,2]
[353193203,1739640641605,-758.76,0.00011203,2]
[353193204,1739640641614,-574.22,0.00011203,2]
[353193205,1739640641623,-500.0,0.00011203,2]
[353193206,1739640641633,-249.99973092,0.00011203,2]
[353193207,1739640641680,-250.00026908,0.00011203,2]
[353193208,1739640641690,-664.12,0.00011203,2]
[353193209,1739640641699,-647.76,0.00011203,2]
[353193210,1739640641708,-500.0,0.00011203,2]
[353193211,1739640641717,-679.9,0.00011203,2]
[353193212,1739640641727,-500.0,0.00011203,2]
[353193213,1739640641736,-500.0,0.00011203,2]
[353193214,1739640641746,-500.0,0.00011203,2]
[353193215,1739640641755,-1774.1,0.00011203,2]
[353193216,1739640641764,-500.0,0.00011203,2]
[353193217,1739640641774,-500.0,0.00011203,2]
[353193218,1739640641783,-567.85,0.00011203,2]
[353193219,1739640641792,-500.0,0.00011203,2]
[353193220,1739640641802,-500.0,0.00011203,2]
[353193221,1739640641811,-536.13,0.00011203,2]
[353193222,1739640641820,-500.0,0.00011203,2]
[353193223,1739640641830,-810.11,0.00011203,2]
[353193224,1739640641839,-275.15789977,0.00011203,2]
[353193225,1739640641849,-500.0,0.00011203,2]
[353193226,1739640641858,-1032.21,0.00011203,2]
[353193227,1739640641867,-500.0,0.00011203,2]
[353193228,1739640641877,-1176.38343173,0.00011203,2]
[353193229,1739640641889,-324.66656827,0.00011203,2]
[353193230,1739640641898,-500.0,0.00011203,2]
[353193231,1739640641907,-644.12,0.00011203,2]
[353193232,1739640641917,-500.0,0.00011203,2]
[353193233,1739640641926,-500.0,0.00011203,2]
[353193234,1739640641936,-500.0,0.00011203,2]
[353193235,1739640641945,-701.46,0.00011203,2]
[353193236,1739640641955,-917.15,0.00011203,2]
[353193237,1739640641965,-500.0,0.00011203,2]
[353193238,1739640641974,-500.0,0.00011203,2]
[353193239,1739640641985,-500.0,0.00011203,2]
[353193240,1739640641995,-500.0,0.00011203,2]
[353193241,1739640642004,-506.75,0.00011203,2]
[353193242,1739640642180,-845.55,0.00011203,2]
[353193243,1739640642190,-500.0,0.00011203,2]
[353193244,1739640642199,-500.0,0.00011203,2]
[353193245,1739640642208,-893.05,0.00011203,2]
[353193246,1739640642217,-500.0,0.00011203,2]
[353193247,1739640642229,-500.0,0.00011203,2]
[353193248,1739640642239,-500.0,0.00011203,2]
[353193249,1739640642247,-1077.49,0.00011203,2]
[353193250,1739640642257,-500.0,0.00011203,2]
[353193251,1739640642266,-625.32,0.00011203,2]
[353193252,1739640642275,-303.59671099,0.00011203,2]
[353193253,1739640642287,-196.40328901,0.00011203,2]
[353193254,1739640642296,-500.0,0.00011203,2]
[353193255,1739640642305,-312.55681953,0.00011203,2]
[353193256,1739640642316,-315.35318047,0.00011203,2]
[353193257,1739640642326,-2.63181903,0.00011203,2]
[353193258,1739640642464,-497.36818097,0.00011203,2]
[353193259,1739640642473,-142.03714472,0.00011203,2]
[353193260,1739640642485,-357.96285528,0.00011203,2]
[353193261,1739640642494,-500.0,0.00011203,2]
[353193262,1739640642503,-470.69051544,0.00011203,2]
[353193263,1739640642515,-362.32948456,0.00011203,2]
[353193264,1739640642524,-629.24,0.00011203,2]
[353193265,1739640642533,-1680.3191416,0.00011203,2]
[353193266,1739640642543,-305.6508584,0.00011203,2]
[353193267,1739640642552,-500.0,0.00011203,2]
[353193268,1739640642562,-500.0,0.00011204,2]
[353193269,1739640642571,-500.0,0.00011204,2]
[353193270,1739640642580,-211.97,0.00011204,2]
[353193271,1739640642589,-500.0,0.00011204,2]
[353193272,1739640642598,-392.31,0.00011204,2]
[353193273,1739640642608,-500.0,0.00011204,2]
[353193274,1739640642617,-500.0,0.00011204,2]
[353193275,1739640642626,-500.0,0.00011204,2]
[353193276,1739640642634,-500.0,0.00011204,2]
[353193277,1739640642643,-500.0,0.00011204,2]
[353193278,1739640642652,-500.0,0.00011204,2]
[353193279,1739640642661,-500.0,0.00011204,2]
[353193280,1739640642670,-738.52,0.00011204,2]
[353193281,1739640642679,-500.0,0.00011204,2]
[353193282,1739640642688,-500.0,0.00011204,2]
[353193283,1739640642697,-500.0,0.00011204,2]
[353193284,1739640642706,-500.0,0.00011204,2]
[353193285,1739640642715,-477.1348724,0.00011204,2]
[353193286,1739640642734,-22.8651276,0.00011204,2]
[353193287,1739640642744,-500.0,0.00011205,2]
[353193288,1739640642753,-500.0,0.00011205,2]
[353193289,1739640642762,-500.0,0.00011205,2]
[353193290,1739640642771,-500.0,0.00011205,2]
[353193291,1739640642780,-500.0,0.00011205,2]
[353193292,1739640642790,-500.0,0.00011205,2]
[353193293,1739640642799,-500.0,0.00011205,2]
[353193294,1739640642808,-500.0,0.00011205,2]
[353193295,1739640642817,-500.0,0.00011205,2]
[353193296,1739640642827,-571.48,0.00011217,2]
[353193297,1739640642836,-512.53,0.00011217,2]
[353193298,1739640642845,-500.0,0.00011217,2]
[353193299,1739640642854,-500.0,0.00011217,2]
[353193300,1739640642864,-844.08,0.00011217,2]
[353193301,1739640642873,-678.77,0.00011217,2]
[353193302,1739640642882,-578.69,0.00011217,2]
[353193303,1739640642892,-836.8,0.00011217,2]
[353193304,1739640642901,-502.58,0.00011217,2]
[353193305,1739640642910,-500.0,0.00011217,2]
[353193306,1739640642920,-500.0,0.00011217,2]
[353193307,1739640642929,-830.02,0.00011217,2]
[353193308,1739640642938,-932.26,0.00011217,2]
[353193309,1739640642947,-651.91,0.00011217,2]
[353193310,1739640642956,-521.69,0.00011217,2]
[353193311,1739640642966,-500.0,0.00011217,2]
[353193312,1739640642976,-2314.63,0.00011217,2]
[353193313,1739640642985,-182.36,0.00011217,2]
[353193314,1739640642994,-500.0,0.00011217,2]
[353193315,1739640643003,-500.0,0.00011217,2]
[353193316,1739640643012,-500.0,0.00011217,2]
[353193317,1739640643021,-500.0,0.00011217,2]
[353193318,1739640643030,-1694.07,0.00011217,2]
[353193319,1739640643039,-500.0,0.00011217,2]
[353193320,1739640643048,-805.43,0.00011217,2]
[353193321,1739640643058,-553.77,0.00011217,2]
[353193322,1739640643068,-10922.25499542,0.0001125,2]
[353193323,1739640643077,-151.0,0.00011285,2]
[353193324,1739640643086,-413.62,0.00011286,2]
[353193325,1739640643096,-661.5,0.00011286,2]
[353193326,1739640643105,-500.0,0.00011286,2]
[353193327,1739640643115,-522.73,0.00011286,2]
[353193328,1739640643124,-500.0,0.00011286,2]
[353193330,1739640643135,-500.0,0.00011286,2]
[353193332,1739640643145,-500.0,0.00011286,2]
[353193334,1739640643154,-500.0,0.00011286,2]
[353193337,1739640643163,-302.37,0.00011286,2]
[353193339,1739640643172,-500.0,0.00011286,2]
[353193341,1739640643182,-500.0,0.00011286,2]
[353193343,1739640643191,-500.0,0.00011286,2]
[353193344,1739640643200,-500.0,0.00011286,2]
[353193345,1739640643210,-500.0,0.00011286,2]
[353193346,1739640643219,-500.0,0.00011286,2]
[353193347,1739640643232,-500.0,0.00011286,2]
[353193348,1739640643242,-500.0,0.00011286,2]
[353193349,1739640643251,-500.0,0.00011286,2]
[353193350,1739640643261,-500.0,0.00011286,2]
[353193351,1739640643270,-500.0,0.00011286,2]
[353193352,1739640643279,-500.0,0.00011286,2]
[353193353,1739640643289,-500.0,0.00011286,2]
[353193354,1739640643298,-500.0,0.00011286,2]
[353193355,1739640643307,-500.0,0.00011286,2]
[353193356,1739640643317,-500.0,0.00011286,2]
[353193358,1739640643327,-702.58,0.00011286,2]
[353193359,1739640643336,-1073.26,0.00011286,2]
[353193360,1739640643346,-500.0,0.00011286,2]
[353193361,1739640643355,-749.99,0.00011286,2]
[353193362,1739640643365,-500.0,0.00011286,2]
[353193363,1739640643375,-500.0,0.00011286,2]
[353193364,1739640643384,-180.896505,0.00011286,2]
[353193365,1739640643394,-500.0,0.00011286,2]
[353193366,1739640643404,-500.0,0.00011286,2]
[353193367,1739640643413,-500.0,0.00011286,2]
[353193368,1739640643423,-500.0,0.00011286,2]
[353193369,1739640643432,-557.75,0.00011286,2]
[353193370,1739640643441,-826.89,0.00011286,2]
[353193371,1739640643451,-364.085208,0.00011286,2]
[353193372,1739640643461,-500.0,0.00011286,2]
[353193373,1739640643471,-551.39,0.00011286,2]
[353193374,1739640643483,-758.76,0.00011286,2]
[353193375,1739640643492,-574.22,0.00011286,2]
[353193376,1739640643502,-500.0,0.00011286,2]
[353193377,1739640643512,-500.0,0.00011286,2]
[353193378,1739640643521,-664.12,0.00011286,2]
[353193379,1739640643531,-647.76,0.00011286,2]
[353193380,1739640643540,-500.0,0.00011286,2]
[353193381,1739640643549,-679.9,0.00011286,2]
[353193382,1739640643559,-500.0,0.00011286,2]
[353193383,1739640643568,-500.0,0.00011286,2]
[353193384,1739640643577,-500.0,0.00011286,2]
[353193385,1739640643587,-1774.1,0.00011286,2]
[353193386,1739640643596,-500.0,0.00011286,2]
[353193387,1739640643606,-500.0,0.00011286,2]
[353193388,1739640643615,-567.85,0.00011286,2]
[353193389,1739640643625,-500.0,0.00011286,2]
[353193390,1739640643634,-179.86,0.00011286,2]
[353193391,1739640643644,-536.13,0.00011286,2]
[353193392,1739640643654,-500.0,0.00011286,2]
[353193393,1739640643663,-810.11,0.00011286,2]
[353193394,1739640643673,-500.0,0.00011286,2]
[353193395,1739640643682,-1032.21,0.00011286,2]
[353193396,1739640643691,-500.0,0.00011286,2]
[353193397,1739640643701,-1501.05,0.00011286,2]
[353193398,1739640643711,-500.0,0.00011286,2]
[353193399,1739640643721,-644.12,0.00011286,2]
[353193400,1739640643734,-500.0,0.00011286,2]
[353193401,1739640643743,-500.0,0.00011286,2]
[353193402,1739640643753,-500.0,0.00011286,2]
[353193403,1739640643763,-701.46,0.00011286,2]
[353193404,1739640643773,-917.15,0.00011286,2]
[353193405,1739640643783,-500.0,0.00011286,2]
[353193406,1739640643793,-625.32014225,0.00011286,2]
[353193407,1739640643804,-500.0,0.00011286,2]
[353193408,1739640643813,-500.0,0.00011286,2]
[353193409,1739640643823,-506.75,0.00011286,2]
[353193410,1739640643833,-845.55,0.00011286,2]
[353193412,1739640643842,-500.0,0.00011286,2]
[353193413,1739640643852,-500.0,0.00011286,2]
[353193416,1739640643861,-893.05,0.00011286,2]
[353193418,1739640643870,-500.0,0.00011286,2]
[353193420,1739640643879,-500.0,0.00011286,2]
[353193421,1739640643889,-500.0,0.00011286,2]
[353193422,1739640643899,-1077.49,0.00011286,2]
[353193423,1739640643909,-500.0,0.00011286,2]
[353193424,1739640643919,-625.32,0.00011286,2]
[353193425,1739640643928,-500.0,0.00011286,2]
[353193426,1739640643938,-500.0,0.00011286,2]
[353193427,1739640643947,-500.0,0.00011286,2]
[353193428,1739640643957,-500.0,0.00011286,2]
[353193430,1739640643966,-500.0,0.00011286,2]
[353193432,1739640643977,-833.02,0.00011286,2]
[353193434,1739640643986,-629.24,0.00011286,2]
[353193436,1739640643995,-1985.97,0.00011286,2]
[353193438,1739640644004,-500.0,0.00011286,2]
[353193440,1739640644014,-500.0,0.00011287,2]
[353193443,1739640644023,-468.29234727,0.00011287,2]
[353193445,1739640644034,-298.06,0.00011287,2]
[353193446,1739640644043,-500.0,0.00011287,2]
[353193447,1739640644053,-500.0,0.00011287,2]
[353193448,1739640644063,-500.0,0.00011287,2]
[353193449,1739640644073,-500.0,0.00011287,2]
[353193450,1739640644083,-615.80669263,0.00011287,2]
[353193451,1739640644092,-301.76,0.00011287,2]
[353193452,1739640644102,-500.0,0.00011287,2]
[353193453,1739640644112,-500.0,0.00011287,2]
[353193454,1739640644121,-258.3,0.00011287,2]
[353193455,1739640644132,-500.0,0.00011287,2]
[353193456,1739640644143,-500.0,0.00011287,2]
[353193457,1739640644153,-500.0,0.00011287,2]
[353193458,1739640644162,-500.0,0.00011287,2]
[353193460,1739640644171,-500.0,0.00011287,2]
[353193462,1739640644182,-738.52,0.00011287,2]
[353193464,1739640644191,-500.0,0.00011287,2]
[353193466,1739640644201,-500.0,0.00011287,2]
[353193468,1739640644211,-500.0,0.00011287,2]
[353193470,1739640644221,-500.0,0.00011287,2]
[353193472,1739640644230,-500.0,0.00011287,2]
[353193473,1739640644239,-500.0,0.00011287,2]
[353193475,1739640644248,-500.0,0.00011287,2]
[353193477,1739640644257,-3069.78032547,0.00011289,2]
[353193479,1739640644267,-571.48,0.00011299,2]
[353193481,1739640644276,-512.53,0.00011299,2]
[353193483,1739640644285,-500.0,0.00011299,2]
[353193485,1739640644295,-500.0,0.00011299,2]
[353193487,1739640644305,-844.08,0.00011299,2]
[353193489,1739640644315,-678.77,0.00011299,2]
[353193491,1739640644324,-578.69,0.00011299,2]
[353193493,1739640644334,-836.8,0.00011299,2]
[353193495,1739640644344,-502.58,0.00011299,2]
[353193497,1739640644354,-500.0,0.00011299,2]
[353193499,1739640644364,-500.0,0.00011299,2]
[353193501,1739640644373,-830.02,0.00011299,2]
[353193503,1739640644383,-932.26,0.00011299,2]
[353193505,1739640644392,-651.91,0.00011299,2]
[353193507,1739640644402,-521.69,0.00011299,2]
[353193509,1739640644412,-500.0,0.00011299,2]
[353193511,1739640644421,-2314.63,0.00011299,2]
[353193513,1739640644430,-500.0,0.00011299,2]
[353193515,1739640644441,-500.0,0.00011299,2]
[353193517,1739640644451,-500.0,0.00011299,2]
[353193519,1739640644460,-500.0,0.00011299,2]
[353193521,1739640644470,-1694.07,0.00011299,2]
[353193523,1739640644484,-500.0,0.00011299,2]
[353193525,1739640644493,-805.43,0.00011299,2]
[353193527,1739640644503,-553.77,0.00011299,2]
[353193529,1739640644513,-2000.0,0.00011368,2]
[353193531,1739640644521,-661.5,0.00011368,2]
[353193533,1739640644530,-500.0,0.00011368,2]
[353193535,1739640644539,-522.73,0.00011368,2]
[353193537,1739640644549,-500.0,0.00011368,2]
[353193539,1739640644558,-500.0,0.00011368,2]
[353193541,1739640644567,-500.0,0.00011368,2]
[353193543,1739640644577,-500.0,0.00011368,2]
[353193545,1739640644586,-500.0,0.00011368,2]
[353193547,1739640644597,-500.0,0.00011368,2]
[353193549,1739640644607,-500.0,0.00011368,2]
[353193551,1739640644617,-500.0,0.00011368,2]
[353193553,1739640644627,-500.0,0.00011368,2]
[353193555,1739640644636,-500.0,0.00011368,2]
[353193557,1739640644647,-500.0,0.00011368,2]
[353193559,1739640644657,-500.0,0.00011368,2]